Cogmind - Beta 13 @@@ ROGUE MODE // 2024.06.11 @ 14:36:33 Player: SovietPaperclip Result: Destroyed by AE-R1J(R) with Subdweller Laser Performance ------------- Evolutions (0) 0 Regions Visited (3) 600 Robots Destroyed (17) 85 Value Destroyed (575) 575 Prototype IDs (0) 0 Alien Tech Used (0) 0 Bonus (30) 30 TOTAL SCORE: 1290 Bonus ------- Follower Combat Kills 30 Cogmind --------- Core Integrity 0/250 Matter 292/300 Energy 231/250 System Corruption 0% Temperature Cool (6) Movement Rolling (150) Ox4 Location -10/Subcaves Parts ------- > --- POWER (1) -------- Ion Engine > --- PROPULSION (2) --- Subdweller Monowheel Subdweller Monowheel > --- UTILITY (2) ------ Huge Storage Unit Targeting Computer > --- WEAPON (2) ------- Riot Gun Subdweller Machine Gun > --- INVENTORY (25) --- Subdweller Power Source Spiked Treads Improved Heat Sink Compact Matter Pod (150) Experimental Sensor Array Propulsion Shielding Hacking Suite Tractor Beam Decoy Drone Bay Makeshift Laser Subdweller Beam Cannon Battle Rifle Barrage Gun Subdweller Shrapnel Launcher Peak State ------------ > --- POWER ------------ Ion Engine > --- PROPULSION ------- Subdweller Monowheel Subdweller Monowheel > --- UTILITY ---------- Huge Storage Unit Targeting Computer > --- WEAPON ----------- Riot Gun Subdweller Machine Gun > --- INVENTORY -------- Subdweller Power Source Spiked Treads Improved Heat Sink Compact Matter Pod Experimental Sensor Array Propulsion Shielding Hacking Suite Tractor Beam Decoy Drone Bay Makeshift Laser Subdweller Beam Cannon Battle Rifle Barrage Gun Subdweller Shrapnel Launcher [Rating: 17] Favorites ----------- Power Light Ion Engine Engine Light Ion Engine Propulsion Light Treads Treads Light Treads Wheel Subdweller Monowheel Utility Huge Storage Unit Storage Huge Storage Unit Processor Targeting Computer Weapon EM Pulse Gun Energy Gun EM Pulse Gun Energy Cannon Subdweller Beam Cannon Ballistic Gun Subdweller Machine Gun Launcher Subdweller Shrapnel Launcher Build | -11 -10 -10 -10 ------- Run | Yrd Mat Min Sub Slots Evolved . | . . . . Power . | . . . . Propulsion . | . . . . Utility . | . . . . Weapon . | . . . . Parts Attached 28 | 8 1 1 18 Power 4 | 1 . . 3 Engine 4 | 1 . . 3 Core . | . . . . Reactor . | . . . . Propulsion 7 | 2 . . 5 Treads 4 | 2 . . 2 Leg . | . . . . Wheel 3 | . . . 3 Hover . | . . . . Flight . | . . . . Utility 3 | 1 1 1 . Device . | . . . . Storage 2 | 1 1 . . Processor 1 | . . 1 . Hackware . | . . . . Protection . | . . . . Artifact . | . . . . Weapon 14 | 4 . . 10 Energy Gun 5 | 3 . . 2 Energy Cannon 1 | . . . 1 Ballistic Gun 7 | 1 . . 6 Ballistic Cannon . | . . . . Launcher 1 | . . . 1 Special Weapon . | . . . . Impact Weapon . | . . . . Slashing Weapon . | . . . . Piercing Weapon . | . . . . Special Melee Weapon . | . . . . Unidentified Prototypes . | . . . . Parts Lost 11 | . . . 11 Power 2 | . . . 2 Propulsion 2 | . . . 2 Utility . | . . . . Weapon 7 | . . . 7 Highest Loss Streak 6 | . . . 6 To Critical Strikes . | . . . . Average Slot Usage (%) 93 | . 85 95 93 Engine 12 | . 14 14 10 Treads 21 | . 28 28 16 Wheel 5 | . . . 10 Storage 14 | . 14 14 14 Processor 11 | . . 9 14 Energy Gun 17 | . 28 28 8 Energy Cannon 1 | . . . 2 Ballistic Gun 7 | . . . 15 Naked Turns . | . . . . Heaviest Build 97 | 12 87 87 97 Greatest Support 40 | 40 40 40 40 Greatest Overweight (x) 5 | . 2 2 5 Average Overweight (x) 2 | . . 2 3 Largest Inventory Capacity 25 | 8 25 25 25 Average Capacity 23 | 6 9 25 25 Most Carried 15 | 3 5 9 15 Average Carried 9 | 1 2 6 11 Final Capacity 25 | 8 25 25 25 Final Carried 15 | 2 4 9 15 Class Distribution -------------------- 92% | Mutant 7% | Scavenger-Mutant Dominant Class ---------------- Mutant | -10/Materials Mutant | -10/Mines Mutant | -10/Subcaves Resources | -11 -10 -10 -10 ----------- Run | Yrd Mat Min Sub Matter Collected 626 | 201 35 64 326 Remotely . | . . . . Salvage Created 631 | . 124 . 507 Parts 49 | . 13 . 36 Haulers Intercepted . | . . . . Recyclers Shooed . | . . . . Parts Field Recycled . | . . . . Retrieved Matter . | . . . . Parts Self-Destructed 1 | . . . 1 Prevented . | . . . . Kills | -11 -10 -10 -10 ------- Run | Yrd Mat Min Sub Combat Hostiles Destroyed 16 | . 4 . 12 Guns 11 | . 3 . 8 Cannons 2 | . . . 2 AOE 3 | . 1 . 2 Classes Destroyed 5 | . 3 . 2 Operator 1 | . 1 . . Swarmer 3 | . 3 . . Grunt 1 | . 1 . . Sentry 1 | . . . 1 Subdweller 11 | . . . 11 Best Kill Streak 3 | . 3 . 2 Combat Bots Only 3 | . 3 . 2 Max Kills in Single Turn 2 | . 2 . 1 Gunslinging . | . . . . Exploded 1 | . 1 . 1 Melee . | . . . . Uniques/NPCs Destroyed . | . . . . Combat | -11 -10 -10 -10 -------- Run | Yrd Mat Min Sub Hostile Shots Fired 98 | . 13 . 85 Missed 32 | . 7 . 25 Damage Taken 1378 | . 54 . 1324 Core 261 | . 21 . 240 Absorbed by Shields . | . . . . Core Remaining (%) 100 | 100 . . . Volleys Fired 76 | . 13 . 63 Largest 2 | . 2 . 2 Hottest 110 | . 80 . 110 Shots Fired 135 | . 26 . 109 Gun 121 | . 26 . 95 Cannon 12 | . . . 12 Launcher 2 | . . . 2 Special . | . . . . Kinetic 65 | . . . 65 Thermal 19 | . . . 19 Explosive . | . . . . Electromagnetic 51 | . 26 . 25 Robot Hit Streak 13 | . 4 . 13 Robot Miss Streak 3 | . 3 . 2 Penetration Max . | . . . . Secondary Targets 1 | . . . 1 Max Gunslinging Chain 1 | . . . 1 Shots Hit Robots 90 | . 12 . 78 Core Hits 30 | . 6 . 24 Critical Kills . | . . . . Critical Parts Destroyed . | . . . . Critical Strikes . | . . . . Melee Attacks . | . . . . Impact . | . . . . Slashing . | . . . . Piercing . | . . . . Sneak Attacks . | . . . . Combat Hostiles . | . . . . Follow-up Attacks . | . . . . Damage Inflicted 1571 | . 220 . 1351 Guns 1198 | . 174 . 1024 Cannons 103 | . . . 103 Explosions 270 | . 46 . 224 Melee . | . . . . Ramming . | . . . . Kinetic 845 | . . . 845 Thermal 337 | . 46 . 291 Explosive . | . . . . Electromagnetic 389 | . 174 . 215 Impact . | . . . . Slashing . | . . . . Piercing . | . . . . Highest Corruption . | . . . . Average Corruption . | . . . . Corruption Purged . | . . . . Corruption Blocked . | . . . . Overload Shots . | . . . . Overflow Damage . | . . . . Projectiles . | . . . . Explosions . | . . . . Melee . | . . . . Knockbacks . | . . . . Impact . | . . . . Kinetic . | . . . . Secondary . | . . . . Self-Inflicted Damage 70 | . . . 70 Shots 2 | . . . 2 Rammed . | . . . . Targets Rammed . | . . . . Kicked . | . . . . Crushed . | . . . . Highest Temperature 72 | . 72 . . Average Temperature 36 | . 36 . . Received Heat Transfer 75 | . 6 . 69 Siege Activations . | . . . . Robots Corrupted . | . . . . Combat Hostiles . | . . . . Parts Fried . | . . . . Impact Corruptions . | . . . . Robots Melted . | . . . . Combat Hostiles . | . . . . Parts Melted 2 | . . . 2 Heat Transferred 398 | . 50 . 348 Parts Sabotaged . | . . . . Parts Stolen . | . . . . Parts Stripped . | . . . . Power Chain Reactions 2 | . 1 . 1 Alert | -11 -10 -10 -10 ------- Run | Yrd Mat Min Sub Peak Influence 123 | . 123 47 . Initial 47 | . . 47 . Average 14 | . 53 11 . Maximum Alert Level . | . . . . Low Security (%) 100 | 100 100 100 . Level 1 . | . . . . Level 2 . | . . . . Level 3 . | . . . . Level 4 . | . . . . Level 5 . | . . . . High Security . | . . . . Max Security . | . . . . Squads Dispatched 1 | . 1 . . Investigation . | . . . . Extermination . | . . . . Reinforcement 1 | . 1 . . Assault . | . . . . Garrison . | . . . . Intercept . | . . . . Searches Triggered . | . . . . Construction Impeded . | . . . . Haulers Reinforced . | . . . . Active Scanning Responses . | . . . . Cargo Convoy Interrupts . | . . . . Stealth | -11 -10 -10 -10 --------- Run | Yrd Mat Min Sub Distress Signals . | . . . . Communications Jammed . | . . . . Distress Signals . | . . . . Times Spotted 20 | . 6 . 14 Peak Tracking Total 3 | . 3 . 3 Tactical Retreats . | . . . . Traps | -11 -10 -10 -10 ------- Run | Yrd Mat Min Sub Traps Triggered . | . . . . Indirectly . | . . . . Trap Hack Attempts . | . . . . Triggered . | . . . . Disarmed . | . . . . Reprogrammed . | . . . . Reused . | . . . . Traps Extracted . | . . . . Installed . | . . . . Triggered . | . . . . Machines | -11 -10 -10 -10 ---------- Run | Yrd Mat Min Sub Machines Disabled 1 | . 1 . . Max in Single Turn 1 | . 1 . . Machines Repaired . | . . . . Machines Dismantled . | . . . . Machines Sabotaged . | . . . . Overloaded Fab Kills . | . . . . Hacking | -11 -10 -10 -10 --------- Run | Yrd Mat Min Sub Machines Accessed 2 | . 1 1 . Terminals 1 | . 1 . . Fabricators . | . . . . Repair Stations . | . . . . Recycling Units . | . . . . Scanalyzers . | . . . . Garrison Access . | . . . . Total Hacks 3 | . 2 1 . Successful 1 | . . 1 . Failed 2 | . 2 . . Catastrophic . | . . . . Database Lockouts . | . . . . Manual 2 | . 2 . . Terminals 2 | . 2 . . Fabricators . | . . . . Repair Stations . | . . . . Recycling Units . | . . . . Scanalyzers . | . . . . Garrison Access . | . . . . Terminal Hacks 1 | . . 1 . Open Door 1 | . . 1 . Fabricator Hacks . | . . . . Repair Station Hacks . | . . . . Recycling Unit Hacks . | . . . . Scanalyzer . | . . . . Garrison Access Hacks . | . . . . Unauthorized Hacks . | . . . . Terminals . | . . . . Fabricators . | . . . . Repair Stations . | . . . . Recycling Units . | . . . . Scanalyzers . | . . . . Garrison Access . | . . . . Data Cores Recovered . | . . . . Used . | . . . . Hacking Detections 1 | . 1 . . Full Trace Events . | . . . . Feedback Events . | . . . . Feedback Blocked . | . . . . Robot Schematics Acquired . | . . . . Robots Built . | . . . . Authchips . | . . . . Time . | . . . . Total Robot Build Rating . | . . . . Part Schematics Acquired . | . . . . Parts Built . | . . . . Authchips . | . . . . Time . | . . . . Total Part Build Rating . | . . . . Parts Repaired . | . . . . Time . | . . . . Parts Recycled . | . . . . Recycled Matter . | . . . . Retrieved Matter . | . . . . Retrieved Components . | . . . . Parts Scanalyzed . | . . . . Part Schematics Acquired . | . . . . Parts Damaged . | . . . . Bothacking | -11 -10 -10 -10 ------------ Run | Yrd Mat Min Sub Used RIF Installer . | . . . . Robots Hacked . | . . . . Non-combat . | . . . . Combat . | . . . . Robot Hacks Applied . | . . . . Relay Couplers Released . | . . . . Fabnet Peak Effective % . | . . . . Robots Rewired . | . . . . Allies Hacked . | . . . . Hacks Repelled . | . . . . Allies | -11 -10 -10 -10 -------- Run | Yrd Mat Min Sub Total Allies 4 | . . 4 . Largest Group 4 | . . 4 3 Highest-Rated Group 71 | . . 71 40 Highest-Rated Ally 31 | . . 31 16 Total Orders . | . . . . Ally Attacks 11 | . . . 11 Total Damage 60 | . . . 60 Kills 1 | . . . 1 Allies Corrupted . | . . . . Allies Melted . | . . . . Intel | -11 -10 -10 -10 ------- Run | Yrd Mat Min Sub Robot Analysis Total . | . . . . Derelict Logs Recovered 4 | . . 2 2 Drone Launches . | . . . . Drone Recoveries . | . . . . Exploration | -11 -10 -10 -10 ------------- Run | Yrd Mat Min Sub Turns Passed 3960 | 87 183 1686 2004 Spaces Moved 1471 | 47 84 526 814 Core 2 | 2 . . . Treads 982 | 45 84 526 327 Legs . | . . . . Wheels 487 | . . . 487 Hover . | . . . . Flight . | . . . . Fastest Speed 50 | 50 160 320 129 Average Speed 250 | 155 169 320 219 Slowest Speed 340 | 160 320 320 340 Overloaded Moves . | . . . . Propulsion Burnouts . | . . . . Robots Hopped . | . . . . Cave-ins Triggered . | . . . . Exploration Rate (%) 46 | 5 20 98 63 Regions Visited 3 Branch Regions 2 Pre-discovered Areas 2 | . . 1 1 Known Exits Taken . | . . . . Unknown Exits Taken 3 | 1 1 1 . Scrap Searched 11 | . . 2 9 Spaces Dug . | . . . . Terrain Destroyed 40 | . 3 . 37 Melee . | . . . . Projectile 1 | . . . 1 AOE 39 | . 3 . 36 Terrain Rammed . | . . . . Walls Destroyed . | . . . . Machines Disabled . | . . . . Actions | -11 -10 -10 -10 --------- Run | Yrd Mat Min Sub Total 1614 | 58 101 531 924 Wait 11 | . . . 11 Move 1468 | 46 83 525 814 Hop . | . . . . Pick Up 26 | 3 3 5 15 Fast Attach 10 | 6 . . 4 Attach 9 | . 1 1 7 Detach . | . . . . Swap 9 | 2 . . 7 Drop 5 | 1 1 . 3 Fire 76 | . 13 . 63 Melee . | . . . . Ram . | . . . . Kick . | . . . . Crush . | . . . . Escape Stasis . | . . . . Rewire . | . . . . Trap . | . . . . Miscellaneous . | . . . . Route ------- -11/Scrapyard -10/Materials -10/Mines (discovered 3 exits: [*Mat x2] / [*Sub]) -10/Subcaves (discovered 2 exits: [*Mat x2]) History --------- Turn | Location | Event 10 | -11/Scrapyard | Discovered new exit (range 15) 88 | -11/Scrapyard | Entered Materials 182 | -10/Materials | Discovered new exit (range 11) 271 | -10/Materials | Entered Mines 274 | -10/Mines | Received a Mining Laser from a helpful Derelict 317 | -10/Mines | Build established: Mutant 496 | -10/Mines | Assisted by bots powering up and referring to "LRC-V3" 629 | -10/Mines | Discovered new exit (range 6) 767 | -10/Mines | Found the Drone Emporium 779 | -10/Mines | Found Prototype Device 1412 | -10/Mines | Learned Materials stockpile data 1416 | -10/Mines | Discovered new exit (range 11) 1512 | -10/Mines | Found a damaged Exp. Sensor Array with a note attached 1518 | -10/Mines | Found Prototype Device 1929 | -10/Mines | Discovered new exit (range 9) 1957 | -10/Mines | Entered Subcaves 1957 | -10/Subcaves | Accompanied by 3 allies 1970 | -10/Subcaves | Learned Materials terminal intel 2120 | -10/Subcaves | Lost 3 allies 2269 | -10/Subcaves | Lost 3 parts (1p2w) 2611 | -10/Subcaves | Learned Materials trap positions 2643 | -10/Subcaves | Disturbed a concealed Subdweller 3101 | -10/Subcaves | Ambushed by Subdwellers from Twisted Machinery 3134 | -10/Subcaves | Core integrity fell below 50% 3186 | -10/Subcaves | Lost 6 parts (1p2n3w) 3331 | -10/Subcaves | Shifting Twisted Machinery released Sub. Laser 3331 | -10/Subcaves | Shifting Twisted Machinery released Riot Gun 3356 | -10/Subcaves | Discovered new exit (range 5) 3588 | -10/Subcaves | A swath of the cavern ceiling suddenly collapsed 3717 | -10/Subcaves | Learned location of Zion (-6) 3717 | -10/Subcaves | Met a Zionite searching for "candidates" 3741 | -10/Subcaves | Shifting Twisted Machinery released Enh. Flamer 3749 | -10/Subcaves | Shifting Twisted Machinery released Barrage Gun 3878 | -10/Subcaves | Discovered new exit (range 15) 3952 | -10/Subcaves | Build established: Scavenger-Mutant 3952 | -10/Subcaves | Core integrity fell below 20% 3961 | -10/Subcaves | Destroyed by AE-R1J(R) with Subdweller Laser Last Messages --------------- 03684_ Searching scrap... 03684_ Found Flamer. 03684_ Found Mak. Laser. 03684_ Found 43 Matter. 03687_ Acquired Mak. Laser. 03690_ Acquired Sub. Power Source. 03717_ YZ-5PB(z): "Hey you! It's really dangerous down here, I feel that you could die at any moment. For your health and safety might I suggest a trip to Zion?" World map updated: -6/Zion. Enh. Flamer falls loose from the Twisted Machinery. Barrage Gun falls loose from the Twisted Machinery. 03757_ Acquired Barrage Gun. 03878_ EXIT=FOUND 03879_ E2-U6K(u) deconstructs Twisted Machinery. 03960_ WX-5DO(R) destroyed. Map ----- +----------------------------------------------------+ | ?????????????????????????????????????????????????? | | ?????????????????????????????????????????????????? | | ?????????????????????????????????????????????????? | | ?????????????????????????????????????????????????? | | ?????????????????????????????????????????????????? | | ?????????????????????????????????????????????????? | | ?????????????????????????????????????????????????? | | ?????????????????????????????????????????????????? | | ?????????????????????????????????????????????????? | | ?????????????????????????????????????????????????? | | ?????????????????????????????????????????????????? | | ?????????????????????????????????????????????????? | | ?????????????????????????????????????????????????? | | ?????????????????????????????????????????????????? | | ?????????????????????????????????????????????????? | | ?????????????????????????????????????????????????? | | ?????????????????????????????????????????????????? | | ?????????????????????????????????????????????????? | | ????????????????????????????????#####????????????? | | ???????????????????????????????## #????????????? | | ??????????????????????????????## #??????? ????? | | ??????????????????????#######?# #???????? ? ?? | | ?????????????? " ## # # #?# ##??????? #?? | | ???????????????? "" " [& #?# #??????? #?? | | ?????????????????#"""" #%#R ### ###????? #??? | | ??????????????????"????##@ ## ###?## #??# | | ????????????????????????## # ### #???# | | ??????????????#??????????# #???# | | ?????????????? ????????## ### ## ##### | | ?????????????? ????#### ##?# ### | | ?????????????? ??## ##?###### | | ???????????????? ### ###??## | | ????????????????# #??# ### | | ????????????????# ## #??# ### | | ????????????????# #?## ##?# ## | | ?????????????#### #### #?# | | ????????????##" ## ### | | ??????????### ## | | ?????????## " ### | | ?????????# ####?# | | ???????????? """ ## ## ##???# | | ????????? """" ## #####????# | | ????????# ##????????# | | ????????# """ ##?????????## | | ????????? ??## ## ##???????????# | | ?????????????### # ?############????????????#### | | ???????????????# ###????????????????????????????? | | ?????????????? ???????????????????????????????? | | ???????????? < ????????????????????????????????? | | ???????????## ????????????????????????????????? | +----------------------------------------------------+ Best States ------------- Heat Dissipation 25 Energy Generation 15 Energy Capacity 250 Matter Stores 300 Matter Capacity 300 Sight Range 16 Terrain Scan Density 10 Evasion (%) 40 Targeting Accuracy 5 Recoil Reduction 2 Item Schematics ----------------- None Robot Schematics ------------------ None Fabricated ------------ Nothing Alien Tech Used ----------------- None Achievements -------------- None Challenges ------------ None Game ------ Seed CoolingLargeSink Manual? 0 Play Time 00:12:39 Cumulative 120.0 hours Start 2024.06.11 @ 14:25:46 End 2024.06.11 @ 14:36:33 Sessions 1 Manual Loads 0 Difficulty Rogue Special Mode None Game No. 164 Rogue 164 Adventurer 0 Explorer 0 Win Type - Total 1 Types 1/0/0/0/0/0/0/0/0 Lore% 49 Gallery% 53 Achievement% 50 Wizard Run 0 Options --------- Layout 1 ASCII 0 Keyboard 0 Movement Mouse Keybinds 0 Fullscreen 1 Font 32/SmallcapsGlow Map View 50x35 Zoom Use 0% Tactical HUD 1 Map Filters NONE Filters NONE Steam 1 RUN: 33f69562-4f89-4a57-ba80-20f39707a59d